bitfinex/quotes_ETHUSD_20250806
["timestamp","ask_amount","ask_price","bid_price","bid_amount"]
[1754472079691,13.84004323,3637.1,3637.0,0.002]
[1754472079891,5.8906,3637.1,3637.0,0.9298]
[1754472080195,5.6906,3637.1,3637.0,0.9298]
[1754472080492,8.44004323,3637.1,3637.0,0.468]
[1754472080795,11.39004323,3637.1,3637.0,0.002]
[1754472080958,11.86564323,3637.1,3637.0,0.002]
[1754472081781,10.84004323,3637.1,3637.0,0.468]
[1754472081989,8.0906,3637.1,3637.0,0.9298]
[1754472082754,3.4906,3637.1,3637.0,0.9298]
[1754472082955,3.4906,3637.1,3637.0,4.32222825]
[1754472083433,5.552,3637.1,3637.0,1.71030942]
[1754472083791,5.552,3637.1,3637.0,4.45982825]
[1754472084405,3.353,3637.1,3637.0,4.45982825]
[1754472084590,5.552,3637.1,3637.0,4.45982825]
[1754472085155,2.249,3637.1,3637.0,0.9298]
[1754472085396,2.3866,3637.1,3637.0,0.468]
[1754472086296,0.1876,3637.1,3637.0,0.9298]
[1754472086592,2.249,3637.1,3637.0,3.67931883]
[1754472086956,2.249,3637.1,3637.0,0.002]
[1754472087156,4.99844323,3637.1,3637.0,0.002]
[1754472087357,6.02404323,3637.1,3637.0,0.002]
[1754472089092,5.54844323,3637.1,3637.0,0.002]
[1754472089571,4.99844323,3637.1,3637.0,0.002]
[1754472089806,5.47404323,3637.1,3637.0,0.002]
[1754472090122,4.99844323,3637.1,3637.0,0.002]
[1754472090826,7.39744323,3637.1,3637.0,0.468]
[1754472091125,7.87304323,3637.1,3637.0,0.002]
[1754472091430,8.42304323,3637.1,3637.0,0.002]
[1754472092519,5.19944323,3637.1,3637.0,0.468]
[1754472092715,4.647,3637.1,3637.0,0.9298]
[1754472092888,7.39644323,3637.1,3637.0,0.9298]
[1754472093604,7.39644323,3637.1,3637.0,0.002]
[1754472094002,2.45,3637.1,3637.0,0.468]
[1754472094206,2.247,3637.1,3637.0,0.9298]
[1754472094517,0.05,3637.1,3637.0,0.9298]
[1754472094714,2.197,3637.1,3637.0,3.67931883]
[1754472094893,2.247,3637.1,3637.0,3.67931883]
[1754472095094,0.05,3637.1,3637.0,4.3222175]
[1754472095398,0.05,3637.6,3637.2,2.74932798]
[1754472095608,0.001,3637.9,3637.4,2.74921647]
[1754472095795,0.001,3637.9,3637.5,0.9278]
[1754472095995,0.001,3637.9,3637.8,2.74891417]
[1754472096311,2.198,3637.9,3637.8,2.74891417]
[1754472096510,2.198,3637.9,3637.8,0.9278]
[1754472098005,2.198,3637.9,3637.8,3.67671417]
[1754472098239,2.198,3637.9,3637.8,3.21491417]
[1754472098540,2.198,3637.9,3637.8,3.67671417]
[1754472099104,2.198,3637.9,3637.8,0.9278]
[1754472099442,2.198,3637.9,3637.8,3.67671417]
[1754472100246,2.248,3637.9,3637.8,3.67671417]
[1754472100631,0.051,3637.9,3637.8,4.33305077]
[1754472100819,2.246,3637.9,3637.8,4.47065077]
[1754472104243,2.246,3637.9,3637.8,4.49813991]
[1754472104420,0.051,3637.9,3637.8,4.47065077]
[1754472106531,0.051,3637.9,3637.8,4.46285077]
[1754472107321,0.051,3637.9,3637.8,3.98405077]
[1754472107521,0.051,3637.9,3637.8,0.1376]
[1754472107723,0.051,3637.9,3637.8,2.74891417]
[1754472108044,0.051,3637.9,3637.8,3.19011417]
[1754472108252,0.051,3637.9,3637.8,3.66891417]
[1754472108747,0.051,3637.9,3637.8,3.19011417]
[1754472108949,0.051,3637.9,3637.7,0.1376]
[1754472109113,0.6619,3637.9,3637.5,2.74911367]
[1754472109421,0.6619,3637.9,3637.5,3.19031367]
[1754472109623,0.4733,3637.8,3637.5,5.7491263]
[1754472109869,2.6663,3637.8,3637.4,2.88679227]
[1754472110010,0.5233,3637.7,3637.4,0.1376]
[1754472110206,0.4733,3637.6,3637.2,2.74936292]
[1754472110442,0.4733,3637.6,3637.0,1.12369867]
[1754472110443,2.74933074,3637.3,3637.0,0.002]
[1754472110642,0.1376,3637.1,3637.0,0.002]
[1754472111263,0.05,3637.5,3637.2,2.74936764]
[1754472111264,0.1376,3637.3,3637.2,2.74936764]
[1754472111433,0.1376,3637.3,3637.2,7.58640216]
[1754472111434,0.05,3637.3,3637.2,7.58640216]
[1754472111631,0.05,3637.8,3637.7,2.74898974]
[1754472111834,0.05,3637.8,3637.7,3.66898974]
[1754472112151,0.05,3637.8,3637.7,3.80658974]
[1754472112847,0.05,3637.8,3637.7,3.32778974]
[1754472113054,0.05,3637.8,3637.0,0.922]
[1754472113216,0.5233,3637.8,3637.1,3.14158147]
[1754472113525,0.5233,3637.8,3637.0,0.4432]
[1754472113713,0.5233,3637.8,3637.4,0.1376]
[1754472113913,0.5233,3637.8,3637.3,2.74925277]
[1754472113914,0.1376,3637.7,3637.3,2.74925277]
[1754472114136,2.6653,3637.6,3637.3,2.74925277]
[1754472114337,2.6653,3637.6,3637.4,2.74921281]
[1754472114655,0.1376,3637.7,3637.6,2.74906531]
[1754472114859,0.05,3637.8,3637.6,2.74906531]
[1754472115352,0.05,3637.8,3637.4,4.23278956]
[1754472115513,0.05,3637.8,3637.7,2.74898974]
[1754472115713,0.05,3637.8,3637.6,2.88664814]
[1754472115909,0.05,3637.8,3637.7,0.4412]
[1754472116148,0.05,3637.8,3637.7,3.19018974]
[1754472116713,0.5233,3637.8,3637.6,0.1376]
[1754472116945,0.5233,3637.8,3637.4,2.88674114]
[1754472117546,0.5233,3637.8,3637.4,2.88680922]
[1754472117849,0.5233,3637.8,3637.5,2.74907762]
[1754472118623,0.5233,3637.8,3637.0,3.002]
[1754472118624,0.4733,3637.7,3637.0,0.922]
[1754472118954,0.6109,3637.7,3637.4,2.74916596]
[1754472119249,0.6109,3637.7,3637.5,2.74912695]
[1754472119551,0.6109,3637.7,3637.4,2.74918807]
[1754472119758,0.6109,3637.7,3637.6,2.74906531]
[1754472119954,0.1376,3637.7,3637.6,2.74906531]
[1754472120345,0.05,3637.8,3637.6,2.74906531]
[1754472120549,0.05,3637.8,3637.7,2.74898974]
[1754472121565,0.5233,3637.8,3637.2,0.4412]
[1754472121866,0.6609,3637.8,3637.6,2.74905523]
[1754472122073,0.1876,3637.8,3637.3,2.8868649]
[1754472122244,0.4733,3637.7,3637.0,0.002]
[1754472122425,0.9349,3637.7,3637.3,2.74926758]
[1754472122765,0.1376,3637.5,3637.0,0.1396]
[1754472122936,0.1376,3637.7,3637.4,2.74921647]
[1754472123352,0.6109,3637.7,3637.2,0.1376]
[1754472123538,0.6109,3637.7,3637.2,2.88693708]
[1754472123842,0.6109,3637.7,3637.2,3.32813708]
[1754472124042,0.6109,3637.7,3637.3,2.74929205]
[1754472124256,0.6109,3637.7,3637.4,2.74919662]
[1754472124866,0.1376,3637.7,3637.2,3.32814495]
[1754472125045,0.4733,3637.6,3637.3,2.74928361]
[1754472125247,0.4733,3637.6,3637.4,2.74921395]
[1754472125579,0.1376,3637.7,3637.6,2.74906531]
[1754472126092,0.05,3637.8,3637.7,2.74898974]
[1754472126232,0.05,3637.8,3637.6,2.88664517]
[1754472126428,0.05,3637.8,3637.6,0.1376]
[1754472126624,0.5233,3637.8,3637.5,0.1376]
[1754472127051,0.4733,3637.7,3637.4,2.74919581]
[1754472127287,0.6492,3637.8,3637.3,2.88686156]
[1754472127575,0.4733,3637.6,3637.3,2.88686156]
[1754472127766,0.6492,3637.8,3637.3,2.88686156]
[1754472127965,0.4733,3637.5,3637.4,2.74921647]
[1754472128165,0.6609,3637.8,3637.4,2.74921647]
[1754472128338,0.1876,3637.8,3637.3,0.1376]
[1754472128546,0.05,3637.8,3637.4,0.92]
[1754472128783,0.05,3637.8,3637.7,2.74898974]
[1754472129082,0.05,3637.8,3637.7,3.19018974]
[1754472129265,0.05,3637.8,3637.6,0.1376]
[1754472130071,0.05,3637.8,3637.6,2.88666481]
[1754472130072,0.5233,3637.8,3637.6,2.88666481]
[1754472130648,0.05,3637.8,3637.6,2.88666481]
[1754472131003,0.05,3637.8,3637.6,0.1376]
[1754472131178,0.05,3637.8,3637.6,2.88665514]
[1754472131380,0.05,3637.8,3637.6,0.1376]
[1754472131581,0.5233,3637.8,3637.6,0.1376]
[1754472131740,0.5233,3637.8,3637.6,2.88665666]
[1754472131944,0.05,3637.8,3637.6,0.1376]
[1754472132284,0.4733,3637.7,3637.4,2.88674576]
[1754472132479,0.4733,3637.7,3637.5,2.74912513]
[1754472132781,0.05,3637.6,3637.5,2.74912513]
[1754472133144,0.05,3637.6,3637.5,0.4533]
[1754472133340,0.05,3637.6,3637.4,0.1376]
[1754472133545,0.05,3637.6,3637.4,2.88674658]
[1754472133857,0.05,3637.6,3637.5,3.20244089]
[1754472134070,0.05,3637.6,3637.5,3.67984089]
[1754472134381,0.05,3637.6,3637.4,2.88680263]
[1754472134547,0.05,3637.6,3637.4,0.1376]
[1754472134756,0.05,3637.6,3637.4,2.88679087]
[1754472135400,0.05,3637.6,3637.5,2.74914089]
[1754472135703,0.05,3637.6,3637.4,2.88678216]
[1754472135861,0.05,3637.6,3637.5,2.74914089]
[1754472136057,0.05,3637.6,3637.5,3.67984089]
[1754472136569,0.05,3637.6,3637.5,3.20244089]
[1754472136769,0.05,3637.6,3637.5,3.67984089]
[1754472137773,0.05,3637.6,3637.5,2.74914089]
[1754472137971,0.05,3637.6,3637.4,0.1376]
[1754472138396,0.6756,3637.5,3637.1,0.002]
[1754472138700,2.74931955,3637.3,3637.1,0.002]
[1754472138998,2.3256,3637.2,3637.1,0.002]
[1754472139407,5.56296764,3637.2,3637.1,0.002]
[1754472139617,2.8136,3637.2,3637.1,0.002]
[1754472141699,2.8636,3637.2,3637.1,0.002]
[1754472141868,5.2636,3637.2,3637.1,0.002]
[1754472142070,4.7756,3637.2,3637.1,0.002]
[1754472142279,2.237,3637.2,3637.1,0.9327]
[1754472142612,2.237,3637.2,3637.1,3.68214323]
[1754472143580,2.237,3637.2,3637.1,0.4553]
[1754472143903,2.237,3637.2,3637.1,0.002]
[1754472144213,3.0445,3637.2,3637.1,0.002]
[1754472144573,3.1821,3637.2,3637.1,0.002]
[1754472144903,5.93146764,3637.2,3637.1,0.002]
[1754472145885,3.1821,3637.2,3637.1,0.002]
[1754472146082,5.93146764,3637.2,3637.1,0.002]
[1754472147173,3.1821,3637.2,3637.1,0.002]
[1754472147405,2.8626,3637.2,3637.1,0.002]
[1754472147739,8.01196764,3637.2,3637.1,0.002]
[1754472148016,2.5876,3637.2,3637.1,0.002]
[1754472148219,2.3736,3637.2,3637.1,0.002]
[1754472149126,0.1876,3637.2,3637.1,0.002]
[1754472149276,2.3736,3637.2,3637.1,0.4553]
[1754472149616,2.3736,3637.2,3637.1,0.002]
[1754472150224,6.05916764,3637.2,3637.1,0.002]
[1754472151837,6.60916764,3637.2,3637.1,0.002]
[1754472152503,3.97496764,3637.2,3637.1,0.002]
[1754472152703,5.82496764,3637.2,3637.1,0.002]
[1754472152928,8.00996764,3637.2,3637.1,0.002]
[1754472153320,4.7726,3637.2,3637.1,0.002]
[1754472153558,4.7726,3637.2,3637.1,0.4553]
[1754472153912,0.05,3637.2,3637.1,3.68214323]
[1754472154141,2.235,3637.2,3637.1,3.68214323]
[1754472154333,2.235,3637.2,3637.1,0.9327]
[1754472154559,2.235,3637.2,3637.1,0.002]
[1754472154746,2.235,3637.2,3637.1,3.68214323]
[1754472155243,2.235,3637.2,3637.1,0.9327]
[1754472155535,2.235,3637.2,3637.1,0.4553]
[1754472155833,0.05,3637.2,3637.1,3.68214323]
[1754472156535,0.05,3637.2,3637.1,0.9327]
[1754472156709,0.05,3637.2,3637.1,0.4553]
[1754472157322,0.05,3637.2,3637.1,0.002]
[1754472157533,3.28736764,3637.2,3637.1,0.002]
[1754472157730,0.538,3637.2,3637.1,0.002]
[1754472161022,2.938,3637.2,3637.1,0.002]
[1754472161225,5.122,3637.2,3637.1,0.002]
[1754472161424,7.87136764,3637.2,3637.1,0.002]
[1754472164160,5.122,3637.2,3637.1,0.002]
[1754472164930,7.87136764,3637.2,3637.1,0.002]
[1754472165131,8.33746764,3637.2,3637.1,0.002]
[1754472167142,5.93746764,3637.2,3637.1,0.002]
[1754472167532,8.33746764,3637.2,3637.1,0.002]
[1754472168470,8.88746764,3637.2,3637.1,0.002]
[1754472168767,8.42136764,3637.2,3637.1,0.002]
[1754472168968,8.88846764,3637.2,3637.1,0.002]
[1754472169541,8.42236764,3637.2,3637.1,0.002]
[1754472169938,8.88846764,3637.2,3637.1,0.002]
[1754472170929,11.88846764,3637.2,3637.1,0.002]
[1754472171667,11.88846764,3637.2,3637.0,1e-08]
[1754472171668,6.29944323,3637.1,3637.0,1e-08]
[1754472171874,7.37814323,3637.1,3637.0,1e-08]
[1754472172374,9.82814323,3637.1,3637.0,1e-08]
[1754472172576,6.29967003,3636.8,3636.7,1e-08]
[1754472172777,8.53167003,3636.8,3636.7,1e-08]
[1754472173078,9.61037003,3636.8,3636.7,1e-08]
[1754472174974,9.74567206,3636.8,3636.7,1e-08]
[1754472176102,7.09757206,3636.8,3636.7,1e-08]
[1754472176266,9.74467206,3636.8,3636.7,1e-08]
[1754472180249,3.55,3636.5,3636.1,1e-08]
[1754472180450,2.75088028,3635.2,3635.1,0.04]
[1754472180682,4.98188028,3635.2,3635.1,0.04]
[1754472180892,7.38188028,3635.2,3635.1,0.94]
[1754472181187,0.1876,3635.2,3635.1,0.94]
[1754472181385,0.05,3635.2,3635.1,0.94]
[1754472181588,0.05,3635.2,3635.1,3.82855595]
[1754472181786,2.23,3635.2,3635.1,4.48651598]
[1754472182960,0.05,3635.2,3635.1,4.48651598]
[1754472185280,0.05,3635.4,3635.1,1.73556003]
[1754472185483,0.05,3635.4,3635.3,2.75080461]
[1754472185997,0.05,3635.4,3635.3,0.9]
[1754472187264,0.05,3635.4,3635.3,4.09945087]
[1754472187465,0.05,3635.4,3635.3,1.34864626]
[1754472187664,0.05,3635.4,3635.3,3.65080461]
[1754472188997,0.05,3635.5,3635.1,3.44886315]
[1754472189204,0.05,3635.5,3635.2,3.65086654]
[1754472189718,0.05,3635.5,3635.3,0.4314]
[1754472189902,0.05,3635.5,3635.3,0.9]
[1754472190673,0.05,3635.5,3635.4,0.4314]
[1754472191196,2.80065328,3635.5,3635.1,0.04]
[1754472191505,2.88848028,3635.2,3635.1,0.04]
[1754472191800,5.06748028,3635.2,3635.1,0.04]
[1754472192002,5.59248028,3635.2,3635.1,0.04]
[1754472192191,7.99248028,3635.2,3635.1,0.04]
[1754472193370,7.37988028,3635.2,3635.1,0.04]
[1754472193605,7.51748028,3635.2,3635.1,0.04]
[1754472193907,7.99388028,3635.2,3635.1,0.04]
[1754472194476,2.5876,3635.2,3635.1,0.04]
[1754472194808,2.5876,3635.2,3635.1,0.9586]
[1754472194809,4.7656,3635.2,3635.1,0.9586]
[1754472195012,2.228,3635.2,3635.1,3.70955595]
[1754472195574,0.05,3635.2,3635.1,0.9586]
[1754472195775,2.228,3635.2,3635.1,0.9586]
[1754472196580,2.228,3635.2,3635.1,3.70955595]
[1754472197111,0.05,3635.2,3635.1,0.9586]
[1754472197316,2.228,3635.2,3635.1,0.9586]
[1754472197480,0.05,3635.2,3635.1,3.70955595]
[1754472197807,2.178,3635.2,3635.1,3.70955595]
[1754472198314,2.228,3635.2,3635.1,3.70955595]
[1754472199617,0.05,3635.2,3635.1,3.70955595]
[1754472199914,2.227,3635.2,3635.1,0.9586]
[1754472200077,0.05,3635.2,3635.1,3.70955595]
[1754472200407,2.227,3635.2,3635.1,3.70955595]
[1754472201514,2.227,3635.2,3635.1,3.24425595]
[1754472202180,2.227,3635.2,3635.1,0.04]
[1754472202181,2.7034,3635.2,3635.1,0.04]
[1754472202412,2.841,3635.2,3635.1,0.04]
[1754472202729,0.05,3635.2,3635.1,0.9586]
[1754472202887,0.05,3635.2,3635.1,3.84715595]
[1754472203233,0.4764,3636.8,3635.6,2.75057762]
[1754472203399,0.1376,3636.6,3635.8,2.75042631]
[1754472203591,2.176,3636.5,3636.4,2.74993588]
[1754472203930,2.176,3636.5,3636.4,3.66853588]
[1754472204139,2.176,3636.5,3636.4,3.6685725]
[1754472204493,2.176,3636.5,3636.4,3.2032725]
[1754472205099,2.176,3636.5,3636.4,3.6685725]
[1754472205927,2.176,3636.5,3636.3,2.88759983]
[1754472206136,2.176,3636.5,3635.9,0.4533]
[1754472206317,0.614,3636.4,3636.0,2.75022014]
[1754472206625,0.614,3636.4,3635.8,2.75036025]
[1754472206626,0.1376,3636.2,3635.6,0.1376]
[1754472207128,0.1376,3636.2,3635.8,2.75036325]
[1754472207313,0.05,3636.1,3635.8,2.75036325]
[1754472207515,2.175,3636.0,3635.9,2.75035066]
[1754472208104,2.175,3636.0,3635.6,0.1376]
[1754472208289,2.175,3636.0,3635.7,2.75049102]
[1754472208488,2.175,3636.0,3635.6,3.34144784]
[1754472208489,0.05,3635.9,3635.6,3.34144784]
[1754472208686,0.5264,3635.9,3635.5,2.75064811]
[1754472208930,0.5264,3635.9,3635.8,2.75042631]
[1754472208931,0.05,3635.9,3635.8,2.75042631]
[1754472209290,0.05,3635.9,3635.8,0.4533]
[1754472209487,0.05,3635.9,3635.8,3.20372631]
[1754472210340,0.05,3635.9,3635.8,0.4533]
[1754472210840,0.05,3635.9,3635.5,2.88824878]
[1754472210841,0.5264,3635.9,3635.5,2.88824878]
[1754472211028,0.5264,3635.9,3635.5,3.34154878]
[1754472211413,0.5264,3635.8,3635.5,0.1376]
[1754472211602,0.5264,3635.8,3635.5,2.75059921]
[1754472211807,0.5264,3635.8,3635.3,3.21608368]
[1754472211808,0.664,3635.8,3635.6,2.75056763]
[1754472212035,0.664,3635.8,3635.5,2.75062829]
[1754472212242,0.05,3635.7,3635.3,0.1376]
[1754472212435,0.5264,3635.7,3635.3,2.88840065]
[1754472212614,0.05,3635.6,3635.3,0.1376]
[1754472212821,2.224,3635.5,3635.1,0.042]
[1754472213020,2.3116,3635.4,3635.1,0.042]
[1754472213322,0.05,3635.3,3635.1,0.042]
[1754472215629,0.05,3635.3,3635.2,3.66948028]
[1754472215849,0.05,3635.3,3635.2,4.31867679]
[1754472216021,0.05,3635.3,3635.2,4.45627679]
[1754472216853,0.1386,3636.0,3635.2,4.45627679]
[1754472216854,0.05,3635.8,3635.7,2.75050196]
[1754472217149,0.05,3635.8,3635.7,3.66910196]
[1754472217554,0.05,3635.8,3635.7,3.39247084]
[1754472217944,0.05,3635.8,3635.7,3.53007084]
[1754472218650,0.05,3635.8,3635.7,4.44867084]
[1754472218840,0.05,3635.8,3635.7,3.53007084]
[1754472219139,0.05,3635.8,3635.7,0.1376]
[1754472219532,0.05,3635.8,3635.6,2.75057125]
[1754472220160,0.05,3635.8,3635.2,1.11449651]
[1754472220161,0.05,3635.8,3635.2,0.64919651]
[1754472220332,0.5264,3635.8,3635.5,2.7506068]
[1754472220662,0.5264,3635.8,3635.6,2.75056405]
[1754472220863,0.05,3635.8,3635.5,2.7506256]
[1754472221190,0.4764,3635.7,3635.4,0.1376]
[1754472221358,0.05,3635.8,3635.4,0.1376]
[1754472221541,0.05,3635.9,3635.4,2.88831395]
[1754472221750,0.4764,3635.7,3635.4,2.88831395]
[1754472221923,0.4764,3635.6,3635.4,2.75071395]
[1754472222123,2.172,3635.5,3635.3,2.75074012]
[1754472222354,2.6484,3635.5,3635.4,2.75072894]
[1754472222550,2.172,3635.5,3635.4,2.75072894]
[1754472223063,0.1376,3635.8,3635.7,2.75050196]
[1754472223246,2.172,3635.8,3635.6,2.75054556]
[1754472223425,2.6552,3635.8,3635.6,2.75054556]
[1754472223627,2.6552,3635.8,3635.5,2.75062362]
[1754472223830,2.172,3635.8,3635.6,2.75057426]
[1754472224031,0.05,3635.9,3635.4,0.4528]
[1754472224234,0.05,3635.9,3635.8,2.75042631]
[1754472224457,2.222,3635.9,3635.8,3.67732631]
[1754472224661,2.222,3635.9,3635.8,3.20322631]
[1754472225446,2.222,3635.9,3635.7,0.1376]
[1754472225660,2.7052,3635.9,3635.5,0.1376]
[1754472225845,2.222,3635.9,3635.7,2.75044338]
[1754472226429,2.222,3635.9,3635.6,2.75055134]
[1754472226865,2.222,3635.9,3635.7,2.75050194]
[1754472227462,2.222,3635.9,3635.5,3.81514196]
[1754472227463,0.5332,3635.8,3635.5,2.75059895]
[1754472227761,0.05,3635.8,3635.7,2.75050196]
[1754472228337,0.05,3635.8,3635.5,0.9269]
[1754472228338,0.05,3635.8,3635.5,2.75062252]
[1754472228565,0.4832,3635.7,3635.4,2.75070735]
[1754472228864,0.4832,3635.6,3635.3,2.88837155]
[1754472229067,0.5332,3635.5,3635.2,2.75087577]
[1754472229231,0.05,3635.4,3635.1,2.9305297]
[1754472229426,2.6542,3635.3,3635.1,2.9305297]
[1754472229625,0.05,3635.2,3635.1,0.1796]
[1754472229867,0.05,3635.2,3635.1,0.042]
[1754472230758,0.5332,3635.2,3635.1,0.042]
[1754472232386,0.5332,3635.2,3635.1,2.79295595]
[1754472232585,0.5332,3635.2,3635.1,0.042]
[1754472233983,3.75888028,3635.2,3635.1,0.042]
[1754472234138,3.89648028,3635.2,3635.1,0.042]
[1754472234538,2.8408,3635.2,3635.1,0.042]
[1754472234750,0.6708,3635.2,3635.1,0.042]
[1754472234988,2.3576,3635.2,3635.1,0.042]
[1754472235669,2.8408,3635.2,3635.1,0.042]
[1754472237574,2.22,3635.2,3635.1,0.042]
[1754472237871,2.22,3635.2,3635.1,3.24575595]
[1754472238039,2.22,3635.2,3635.1,3.71985595]
[1754472238240,0.05,3635.2,3635.1,4.3809115]
[1754472238472,2.219,3635.2,3635.1,4.5185115]
[1754472240779,0.05,3635.2,3635.1,4.5185115]
[1754472241486,0.05,3635.2,3635.1,7.5185115]
[1754472241989,2.169,3635.7,3635.6,2.75057762]
[1754472242357,0.05,3635.7,3635.6,4.7329579]
[1754472247893,0.05,3635.7,3635.6,3.8060579]
[1754472248096,0.05,3635.9,3635.8,2.75042631]
[1754472248401,0.5332,3635.9,3635.8,2.75042631]
[1754472248571,0.5332,3635.9,3635.8,0.1376]
[1754472248773,0.6708,3635.9,3635.4,4.28]
[1754472249094,0.05,3635.9,3635.8,2.75042631]
[1754472249599,2.217,3635.9,3635.8,2.75042631]
[1754472251994,2.217,3635.9,3635.7,2.8880691]
[1754472252196,2.7002,3635.9,3635.7,2.8880691]
[1754472252406,0.05,3635.8,3635.7,2.88810196]
[1754472252572,0.5332,3635.8,3635.6,2.7505729]
[1754472252769,0.5332,3635.8,3635.7,2.75050196]
[1754472253086,0.05,3635.8,3635.7,2.75050196]
[1754472253290,0.05,3635.8,3635.6,2.75055779]
[1754472253490,0.05,3635.8,3635.7,2.75050196]
[1754472253695,0.05,3635.8,3635.6,2.75055106]
[1754472253887,2.166,3635.7,3635.6,2.75055106]
[1754472254194,2.6584,3635.7,3635.6,2.75055106]
[1754472254404,2.6584,3635.7,3635.4,0.1376]
[1754472254718,0.4924,3635.6,3635.4,0.1376]
[1754472255402,2.166,3635.7,3635.4,0.1376]
[1754472255594,2.166,3635.7,3635.4,2.88830904]
[1754472255794,2.6584,3635.7,3635.4,2.88830904]
[1754472255995,2.6584,3635.7,3635.5,2.75064433]
[1754472257006,0.05,3635.6,3635.5,2.75064433]
[1754472257696,2.216,3635.6,3635.5,3.23724433]
[1754472258202,2.216,3635.6,3635.5,2.75064433]
[1754472260480,2.7084,3635.6,3635.4,0.1376]
[1754472260686,2.216,3635.6,3635.1,0.042]
[1754472260870,0.4924,3635.5,3635.3,0.1376]
[1754472261206,0.4924,3635.5,3635.3,2.88836128]
[1754472261521,2.216,3635.6,3635.3,2.88836128]
[1754472261806,0.4924,3635.4,3635.1,0.042]
[1754472261980,0.4924,3635.4,3635.1,0.1796]
[1754472262167,0.4924,3635.4,3635.2,2.75086652]
[1754472262779,2.3536,3635.6,3635.1,2.93055484]
[1754472263014,0.05,3635.5,3635.2,2.75088028]
[1754472263724,0.5424,3635.5,3635.2,2.75088028]
[1754472263917,0.05,3635.5,3635.4,2.75072894]
[1754472264103,0.05,3635.5,3635.4,3.83352894]
[1754472264419,0.05,3635.5,3635.4,3.34692894]
[1754472264616,0.05,3635.5,3635.4,0.1376]
[1754472264817,0.5424,3635.5,3635.2,2.75081302]
[1754472265027,0.4924,3635.4,3635.3,2.75078245]
[1754472265923,0.4924,3635.4,3635.2,0.1376]
[1754472266818,0.05,3635.5,3635.2,0.1376]
[1754472266819,0.4924,3635.3,3635.2,0.1376]
[1754472268089,0.4924,3635.3,3635.2,2.88848028]
[1754472268301,0.05,3635.5,3635.2,2.88844695]
[1754472268622,0.05,3635.5,3635.2,2.88847455]
[1754472268826,0.05,3635.5,3635.4,2.75072894]
[1754472269022,2.214,3635.5,3635.4,2.75072894]
[1754472269328,2.7064,3635.5,3635.4,2.75072894]
[1754472270322,2.214,3635.5,3635.4,2.75072894]
[1754472270526,2.214,3635.5,3635.4,3.69592894]
[1754472270823,2.214,3635.5,3635.4,2.71914594]
[1754472271726,2.214,3635.5,3635.2,3.2374794]
[1754472271727,2.7064,3635.5,3635.2,2.75085326]
[1754472271917,0.4924,3635.4,3635.2,2.88845326]
[1754472272114,0.4924,3635.4,3635.3,2.75080461]
[1754472272627,0.4924,3635.4,3635.2,2.88844878]
[1754472272828,0.4924,3635.4,3635.3,2.75080461]
[1754472273017,2.214,3635.5,3635.3,2.75080461]
[1754472273216,2.214,3635.5,3635.2,2.88845517]
[1754472273528,2.7064,3635.5,3635.2,2.88845517]
[1754472273773,2.7064,3635.5,3635.3,2.75079703]
[1754472274225,2.7064,3635.5,3635.2,2.88845065]
[1754472274428,2.214,3635.5,3635.2,2.88845065]
[1754472275997,0.4924,3635.2,3635.1,0.042]
[1754472276200,0.8482,3635.2,3635.1,0.042]
[1754472276396,3.59908028,3635.2,3635.1,0.042]
[1754472277006,0.8482,3635.2,3635.1,0.042]
[1754472277224,0.5424,3635.2,3635.1,0.042]
[1754472277547,3.29328028,3635.2,3635.1,0.042]
[1754472277852,3.59908028,3635.2,3635.1,0.042]
[1754472279017,5.99908028,3635.2,3635.1,0.042]
[1754472280848,2.759007,3635.1,3634.9,0.002]
[1754472281014,2.162,3635.0,3634.9,0.002]
[1754472281217,2.6544,3635.0,3634.9,0.002]
[1754472281846,5.40543163,3635.0,3634.9,0.002]
[1754472282334,5.86743163,3635.0,3634.9,0.002]
[1754472282624,2.162,3635.0,3634.9,0.002]
[1754472283659,2.161,3635.0,3634.9,3.6893498]
[1754472283836,2.171,3635.0,3634.9,4.33380981]
[1754472284154,0.01,3635.0,3634.9,4.33380981]
[1754472286257,0.01,3635.0,3634.9,4.47140981]
[1754472287555,0.01,3635.0,3634.9,7.47140981]
[1754472287756,0.001,3636.0,3635.9,2.75035066]
[1754472287959,0.001,3636.0,3635.9,3.02538573]
[1754472288131,0.001,3636.0,3635.9,3.62158573]
[1754472288451,0.001,3636.0,3635.9,4.09928573]
[1754472291259,0.001,3636.0,3635.9,3.16298573]
[1754472291758,0.001,3636.0,3635.9,2.88795066]
[1754472292064,0.001,3636.0,3635.9,3.34655066]
[1754472292426,0.001,3636.0,3635.9,3.82425066]
[1754472294466,0.001,3636.0,3635.9,2.88795066]
[1754472294966,0.001,3636.0,3635.9,3.34655066]
[1754472295166,0.001,3636.0,3635.9,4.00401958]
[1754472295732,0.001,3636.0,3635.9,4.48171958]
[1754472296849,0.001,3636.0,3635.9,3.54541958]
[1754472297735,0.001,3636.0,3635.9,4.48171958]
[1754472303601,0.001,3636.4,3636.3,2.75004812]
[1754472303951,0.001,3636.4,3636.3,6.74019414]
[1754472304107,0.001,3636.4,3636.3,7.64899366]
[1754472304476,0.001,3636.4,3636.3,7.75913966]
[1754472307518,0.001,3636.8,3636.7,2.74974564]
[1754472307700,0.001,3636.8,3636.7,2.88734564]